bitfinex/quotes_SOLUSD_20241213
["timestamp","ask_amount","ask_price","bid_price","bid_amount"]
[1734118109224,11.2198,222.82,222.71,13.29555134]
[1734118109451,0.67305284,222.81,222.71,13.29555134]
[1734118109625,20.0,222.79,222.71,13.29555134]
[1734118109839,0.67305284,222.78,222.7,13.29555134]
[1734118113940,0.67305284,222.78,222.69,13.29555134]
[1734118114257,20.0,222.76,222.69,13.29555134]
[1734118115652,20.0,222.76,222.7,13.29555134]
[1734118117133,0.67305284,222.78,222.7,13.29555134]
[1734118117530,0.67305284,222.78,222.69,13.29555134]
[1734118117726,0.67305284,222.78,222.65,19.39775134]
[1734118117727,20.0,222.74,222.65,19.39775134]
[1734118117939,0.67305284,222.73,222.62,1.5909]
[1734118118451,23.776884,222.72,222.62,1.5909]
[1734118118643,0.67305284,222.71,222.62,1.5909]
[1734118118847,24.44993684,222.73,222.62,1.5909]
[1734118119026,24.44993684,222.73,222.61,13.29555134]
[1734118119027,20.0,222.7,222.61,13.29555134]
[1734118119233,24.44993684,222.73,222.59,6.6541]
[1734118119234,20.67305284,222.69,222.59,6.6541]
[1734118119431,20.67305284,222.69,222.58,13.29555134]
[1734118120059,23.776884,222.68,222.58,13.29555134]
[1734118120262,0.67305284,222.67,222.59,13.29555134]
[1734118121855,0.67305284,222.67,222.6,13.29555134]
[1734118122162,31.2268,222.69,222.61,13.29555134]
[1734118122661,0.67305284,222.68,222.6,13.29555134]
[1734118122958,0.67305284,222.68,222.56,1.624]
[1734118122959,0.67305284,222.68,222.59,13.29555134]
[1734118123168,0.67305284,222.68,222.58,13.29555134]
[1734118123380,0.67305284,222.68,222.6,13.29555134]
[1734118123669,0.67305284,222.68,222.59,13.29555134]
[1734118124051,0.67305284,222.68,222.58,13.29555134]
[1734118124944,0.67305284,222.68,222.59,13.29555134]
[1734118126779,0.25098,222.63,222.5,11.04616075]
[1734118126942,23.776884,222.61,222.48,13.29555134]
[1734118127251,0.67305284,222.6,222.48,13.29555134]
[1734118127459,23.776884,222.59,222.47,19.92475134]
[1734118127769,0.67305284,222.58,222.47,19.92475134]
[1734118128170,0.67305284,222.58,222.49,13.29555134]
[1734118128557,0.67305284,222.58,222.47,19.92475134]
[1734118129770,11.2319,222.59,222.5,13.29555134]
[1734118129952,11.2319,222.59,222.51,13.29555134]
[1734118130148,11.2319,222.59,222.5,13.29555134]
[1734118130877,0.67305284,222.58,222.49,13.29555134]
[1734118131053,0.67305284,222.58,222.47,33.29555134]
[1734118131260,0.67305284,222.58,222.47,13.29555134]
[1734118132650,11.2324,222.57,222.46,13.29555134]
[1734118132850,0.67305284,222.56,222.45,13.29555134]
[1734118133052,0.67305284,222.56,222.44,14.94445134]
[1734118134354,0.67305284,222.56,222.45,13.29555134]
[1734118135464,0.67305284,222.56,222.46,13.29555134]
[1734118135667,20.0,222.59,222.5,13.29555134]
[1734118135874,0.67305284,222.58,222.5,13.29555134]
[1734118136884,0.67305284,222.58,222.48,13.29555134]
[1734118137255,0.67305284,222.58,222.46,13.29555134]
[1734118137578,11.2324,222.57,222.45,13.29555134]
[1734118137770,0.67305284,222.56,222.45,13.29555134]
[1734118140554,0.67305284,222.56,222.47,13.29555134]
[1734118140760,0.67305284,222.56,222.48,13.29555134]
[1734118141275,0.67305284,222.56,222.47,13.29555134]
[1734118143258,0.67305284,222.56,222.46,13.29555134]
[1734118143764,0.67305284,222.56,222.45,13.29555134]
[1734118143980,0.67305284,222.56,222.43,0.12549]
[1734118144179,0.67305284,222.56,222.45,13.29555134]
[1734118145666,11.2334,222.55,222.44,13.29555134]
[1734118145873,0.67305284,222.54,222.44,13.29555134]
[1734118146368,0.67305284,222.54,222.43,13.29555134]
[1734118146580,20.0,222.52,222.39,14.90765134]
[1734118146782,0.67305284,222.51,222.39,14.90765134]
[1734118147169,0.67305284,222.51,222.4,13.29555134]
[1734118147882,11.90855284,222.51,222.4,13.29555134]
[1734118148275,11.90855284,222.51,222.41,13.29555134]
[1734118150469,11.90855284,222.51,222.4,13.29555134]
[1734118151692,11.90855284,222.51,222.41,13.29555134]
[1734118152063,20.0,222.52,222.44,13.29555134]
[1734118152298,20.0,222.52,222.45,13.29555134]
[1734118152590,20.0,222.52,222.44,13.29555134]
[1734118154669,11.2339,222.55,222.48,13.29555134]
[1734118154983,11.2339,222.55,222.49,13.29555134]
[1734118155167,11.2319,222.59,222.52,13.29555134]
[1734118155401,11.2319,222.59,222.53,13.29555134]
[1734118155563,11.90275284,222.63,222.55,13.29555134]
[1734118155762,11.2297,222.63,222.55,13.29555134]
[1734118156904,0.67305284,222.62,222.55,13.29555134]
[1734118157200,20.0,222.63,222.55,13.29555134]
[1734118157574,0.67305284,222.66,222.57,13.29555134]
[1734118157881,0.67305284,222.66,222.53,30.67379732]
[1734118157882,0.67305284,222.66,222.58,13.29555134]
[1734118159580,0.67305284,222.66,222.57,13.29555134]
[1734118160071,0.67305284,222.66,222.58,13.29555134]
[1734118160277,11.2273,222.67,222.59,13.29555134]
[1734118160487,11.2273,222.67,222.6,13.29555134]
[1734118160680,11.89855284,222.71,222.61,13.29555134]
[1734118160881,11.89855284,222.71,222.64,13.29555134]
[1734118161084,11.89665284,222.75,222.65,13.29555134]
[1734118162177,11.89665284,222.75,222.64,13.29555134]
[1734118162586,23.776884,222.74,222.64,13.29555134]
[1734118162784,11.89665284,222.75,222.68,13.29555134]
[1734118162967,0.67305284,222.74,222.66,13.29555134]
[1734118163171,11.2236,222.75,222.66,13.29555134]
[1734118163670,11.2236,222.75,222.67,13.29555134]
[1734118163892,0.67305284,222.79,222.68,13.29555134]
[1734118164233,0.67305284,222.8,222.72,13.29555134]
[1734118164397,11.2193,222.83,222.74,13.29555134]
[1734118164398,0.67305284,222.82,222.74,13.29555134]
[1734118164601,0.67305284,222.82,222.72,13.29555134]
[1734118164914,11.2193,222.83,222.74,13.29555134]
[1734118165219,11.2193,222.83,222.75,13.29555134]
[1734118165622,0.67305284,222.82,222.75,13.29555134]
[1734118165789,0.67305284,222.82,222.74,13.29555134]
[1734118167305,0.67305284,222.82,222.73,13.29555134]
[1734118168628,0.67305284,222.82,222.75,13.29555134]
[1734118168795,20.0,222.84,222.75,13.29555134]
[1734118168992,11.2173,222.87,222.79,13.29555134]
[1734118169424,11.2173,222.87,222.78,13.29555134]
[1734118169604,11.2173,222.87,222.77,13.29555134]
[1734118169920,11.2173,222.87,222.78,13.29555134]
[1734118170426,0.12549,222.91,222.78,13.29555134]
[1734118170634,0.12549,222.9,222.78,13.29555134]
[1734118171303,11.34159,222.9,222.78,13.29555134]
[1734118171508,20.0,222.87,222.78,13.29555134]
[1734118172017,0.67305284,222.86,222.78,13.29555134]
[1734118172213,0.67305284,222.86,222.74,13.29555134]
[1734118172523,0.67305284,222.86,222.76,13.29555134]
[1734118173309,0.67305284,222.86,222.72,30.0]
[1734118173310,0.67305284,222.86,222.75,13.29555134]
[1734118174000,0.67305284,222.86,222.76,13.29555134]
[1734118177619,0.67305284,222.86,222.75,13.29555134]
[1734118178413,0.67305284,222.86,222.74,13.29555134]
[1734118178614,11.2183,222.85,222.74,13.29555134]
[1734118178923,0.67305284,222.84,222.74,13.29555134]
[1734118179311,0.67305284,222.84,222.72,13.29555134]
[1734118179607,11.2193,222.83,222.71,13.29555134]
[1734118179810,0.67305284,222.82,222.71,13.29555134]
[1734118180025,0.67305284,222.82,222.72,13.29555134]
[1734118182125,0.67305284,222.82,222.71,13.29555134]
[1734118184728,0.67305284,222.86,222.77,13.29555134]
[1734118184922,11.2176,222.87,222.78,13.96871702]
[1734118185123,11.2156,222.91,222.79,13.29555134]
[1734118185320,0.67305284,222.9,222.79,13.29555134]
[1734118185520,0.67305284,222.93,222.82,13.29555134]
[1734118185726,11.2137,222.95,222.82,13.29555134]
[1734118185921,0.67305284,222.94,222.82,13.29555134]
[1734118186511,11.88675284,222.95,222.85,13.29555134]
[1734118186707,0.67305284,222.94,222.83,13.96852361]
[1734118187026,0.67305284,222.94,222.8,13.29555134]
[1734118187213,0.67305284,222.94,222.8,0.12549]
[1734118188205,31.2152,222.92,222.8,0.12549]
[1734118188407,0.67305284,222.91,222.79,13.29555134]
[1734118190221,11.2157,222.9,222.77,1.6488]
[1734118190435,20.0,222.87,222.73,43.29555134]
[1734118190608,0.67305284,222.86,222.72,14.84715134]
[1734118190808,0.67305284,222.86,222.71,6.152]
[1734118192033,20.0,222.82,222.71,6.152]
[1734118192246,0.67305284,222.81,222.71,6.152]
[1734118192815,0.67305284,222.81,222.71,19.44755134]
[1734118194824,0.67305284,222.81,222.71,6.152]
[1734118195026,0.67305284,222.81,222.69,13.29555134]
[1734118195757,11.2208,222.8,222.69,0.12549]
[1734118196045,0.67305284,222.79,222.69,13.42104134]
[1734118196516,11.2208,222.8,222.69,13.42104134]
[1734118196922,20.0,222.82,222.7,13.29555134]
[1734118197113,0.67305284,222.81,222.7,13.29555134]
[1734118197722,0.67305284,222.81,222.69,13.42104134]
[1734118198124,11.89335284,222.81,222.69,13.42104134]
[1734118198725,11.89335284,222.81,222.68,11.51749327]
[1734118199128,20.0,222.78,222.68,11.51749327]
[1734118199441,0.67305284,222.77,222.63,32.57420174]
[1734118199646,0.67305284,222.77,222.64,30.0]
[1734118200145,11.89565284,222.77,222.64,30.0]
[1734118200512,11.89565284,222.77,222.64,43.29555134]
[1734118200717,11.89565284,222.77,222.65,13.29555134]
[1734118201133,0.67305284,222.8,222.69,13.29555134]
[1734118201340,0.67305284,222.8,222.68,13.29555134]
[1734118201544,20.0,222.78,222.66,13.42104134]
[1734118201747,0.67305284,222.77,222.66,13.42104134]
[1734118202930,11.2228,222.76,222.64,13.29555134]
[1734118203129,0.67305284,222.75,222.63,19.2786504]
[1734118206153,0.67305284,222.8,222.69,13.29555134]
[1734118207026,0.67305284,222.8,222.7,13.29555134]
[1734118207934,20.0,222.82,222.72,13.29555134]
[1734118208125,0.67305284,222.84,222.73,13.96880935]
[1734118208949,0.67305284,222.84,222.74,13.29555134]
[1734118209150,11.2187,222.85,222.75,13.29555134]
[1734118209738,0.67305284,222.84,222.75,13.29555134]
[1734118209947,11.2187,222.85,222.75,13.29555134]
[1734118210338,0.67305284,222.88,222.76,13.42104134]
[1734118210543,0.67305284,222.88,222.76,13.96871003]
[1734118210855,0.67305284,222.88,222.76,0.12549]
[1734118211230,0.67305284,222.88,222.74,37.32341534]
[1734118211860,0.67305284,222.88,222.74,37.07243534]
[1734118212037,11.2173,222.87,222.73,13.29555134]
[1734118212349,0.67305284,222.86,222.74,0.12549]
[1734118212952,0.67305284,222.86,222.74,13.42104134]
[1734118213250,0.67305284,222.86,222.74,13.29555134]
[1734118213433,20.0,222.86,222.74,13.29555134]
[1734118213633,0.67305284,222.85,222.74,13.29555134]
[1734118213847,20.0,222.86,222.76,13.29555134]
[1734118214233,0.67305284,222.85,222.75,0.12549]
[1734118214434,0.67305284,222.85,222.74,13.29555134]
[1734118214728,0.67305284,222.85,222.75,13.29555134]
[1734118216049,0.67305284,222.85,222.74,0.12549]
[1734118216050,0.67305284,222.88,222.77,13.29555134]
[1734118216240,20.0,222.87,222.78,13.96863164]
[1734118216647,0.67305284,222.89,222.8,13.29555134]
[1734118216854,11.2162,222.9,222.8,13.29555134]
[1734118217051,11.2162,222.9,222.81,13.29555134]
[1734118217836,11.88675284,222.94,222.81,13.29555134]
[1734118218063,11.88675284,222.94,222.8,13.29555134]
[1734118218238,20.0,222.91,222.8,13.29555134]
[1734118218438,20.0,222.91,222.81,13.29555134]
[1734118218941,0.67305284,222.9,222.79,13.29555134]
[1734118220157,20.67305284,222.9,222.76,43.29555134]
[1734118221159,11.2162,222.89,222.76,43.29555134]
[1734118221460,0.67305284,222.88,222.78,37.07243534]
[1734118222464,0.67305284,222.88,222.77,13.29555134]
[1734118222640,11.2173,222.87,222.73,43.29555134]
[1734118222840,20.0,222.84,222.73,0.12549]
[1734118223153,0.67305284,222.83,222.71,11.55208878]
[1734118224175,0.12549,222.82,222.71,11.55208878]
[1734118224345,0.67305284,222.81,222.71,11.55208878]
[1734118224740,11.2208,222.8,222.71,11.55208878]
[1734118225155,0.67305284,222.82,222.71,24.84764012]
[1734118225482,11.89215284,222.84,222.73,13.29555134]
[1734118225681,11.89215284,222.84,222.72,37.19792534]
[1734118226346,0.67305284,222.83,222.72,37.19792534]
[1734118226763,0.67305284,222.83,222.71,24.84764012]
[1734118227070,20.0,222.79,222.71,11.55208878]
[1734118227279,0.67305284,222.78,222.71,11.55208878]
[1734118229362,0.67305284,222.84,222.75,13.29555134]
[1734118229572,48.54901855,222.93,222.81,13.29555134]
[1734118229573,0.67305284,222.9,222.81,13.29555134]
[1734118229867,0.67305284,222.94,222.86,13.29555134]
[1734118230169,0.67305284,222.95,222.85,13.29555134]
[1734118230492,0.67305284,222.95,222.83,13.29555134]
[1734118230644,0.67305284,222.95,222.82,37.07243534]
[1734118230844,0.67305284,222.95,222.83,13.29555134]
[1734118231246,0.67305284,222.95,222.83,21.24938846]
[1734118231455,0.67305284,222.95,222.84,21.24938846]
[1734118231650,0.67305284,222.95,222.86,21.24938846]
[1734118231850,0.67305284,222.98,222.84,23.776884]
[1734118233073,0.12549,222.97,222.84,23.776884]
[1734118233454,20.0,222.95,222.84,23.776884]
[1734118233653,0.67305284,222.94,222.84,23.776884]
[1734118234074,0.67305284,222.94,222.82,23.776884]
[1734118234968,0.67305284,222.94,222.82,45.02627246]
[1734118236180,0.67305284,222.94,222.84,21.24938846]
[1734118236394,0.79854284,222.97,222.86,21.24938846]
[1734118236674,20.67305284,222.96,222.85,21.24938846]
[1734118237580,0.67305284,222.97,222.87,21.24938846]
[1734118237753,0.67305284,222.97,222.86,21.24938846]
[1734118238151,0.67305284,223.01,222.9,21.24938846]
[1734118238365,0.67305284,223.01,222.89,45.02627246]
[1734118239485,20.0,223.0,222.89,45.02627246]
[1734118239679,0.67305284,222.99,222.89,45.02627246]
[1734118239979,0.67305284,222.99,222.89,23.776884]
[1734118240675,0.12549,222.98,222.86,21.24938846]
[1734118240868,0.12549,222.98,222.82,30.0]
[1734118240869,20.12549,223.0,222.83,21.24938846]
[1734118241058,0.12549,222.98,222.83,21.24938846]
[1734118241257,0.12549,222.98,222.84,0.12549]
[1734118241866,0.12549,222.98,222.84,21.24938846]
[1734118242056,0.12549,222.98,222.85,45.02627246]
[1734118242250,11.33719,222.98,222.85,21.24938846]
[1734118242450,0.67305284,222.97,222.85,21.24938846]
[1734118244064,0.67305284,222.97,222.85,23.776884]
[1734118244266,0.67305284,222.97,222.86,21.24938846]
[1734118244571,0.67305284,222.97,222.85,21.24938846]
[1734118245180,0.67305284,222.97,222.86,21.24938846]
[1734118245375,0.67305284,222.97,222.87,21.92222587]
[1734118245882,0.67305284,222.97,222.88,21.24938846]
[1734118246781,0.67305284,222.97,222.86,21.24938846]
[1734118247482,0.67305284,222.97,222.85,30.0]
[1734118247483,11.2127,222.96,222.84,0.12549]
[1734118247685,0.67305284,222.95,222.84,0.12549]
[1734118248382,0.67305284,222.95,222.82,30.0]
[1734118248572,20.0,222.93,222.82,30.0]
[1734118248768,0.67305284,222.92,222.82,30.0]
[1734118250103,0.67305284,222.92,222.81,23.776884]
[1734118250284,20.0,222.94,222.8,23.776884]
[1734118250589,0.67305284,222.93,222.8,23.776884]
[1734118251685,11.2147,222.92,222.8,23.776884]
[1734118251905,0.67305284,222.91,222.8,23.776884]
[1734118252080,0.67305284,222.91,222.8,45.02627246]
[1734118252277,0.67305284,222.91,222.82,21.24938846]
[1734118252488,0.67305284,222.93,222.82,21.24938846]
[1734118252671,0.67305284,222.93,222.8,45.69927304]
[1734118252872,0.67305284,222.93,222.8,23.776884]
[1734118253194,11.88725284,222.93,222.8,23.776884]
[1734118254282,11.2152,222.91,222.79,23.776884]
[1734118254465,0.67305284,222.9,222.79,23.776884]
[1734118256980,0.67305284,222.9,222.78,0.12549]
[1734118257183,0.67305284,222.9,222.78,23.902374]
[1734118260572,20.0,222.88,222.78,23.902374]
[1734118261272,0.67305284,222.87,222.75,21.27610253]
[1734118261467,0.67305284,222.87,222.72,62.52730902]
[1734118261769,0.12549,222.86,222.73,43.28710253]
[1734118261969,20.0,222.85,222.74,14.08584177]
[1734118262195,11.89005284,222.88,222.79,0.12549]
[1734118262494,20.0,222.88,222.79,13.41259253]
[1734118263808,0.67305284,222.87,222.76,43.28710253]
[1734118264090,20.0,222.86,222.74,13.28710253]
[1734118264306,0.67305284,222.85,222.75,30.0]
[1734118264472,0.67305284,222.85,222.73,30.0]
[1734118264473,0.67305284,222.85,222.76,0.12549]
[1734118265147,20.0,222.84,222.74,0.12549]
[1734118265316,20.0,222.84,222.74,23.902374]
[1734118266695,0.67305284,222.86,222.74,23.902374]
[1734118266898,0.67305284,222.86,222.74,37.18947653]
[1734118267094,11.2183,222.85,222.73,13.28710253]
[1734118267312,0.67305284,222.84,222.74,13.28710253]
[1734118270627,20.0,222.86,222.76,13.28710253]
[1734118270814,0.67305284,222.85,222.76,13.28710253]
[1734118271141,0.67305284,222.91,222.8,13.28710253]
[1734118271441,0.67305284,222.91,222.81,13.28710253]
[1734118272673,20.0,222.93,222.82,13.28710253]
[1734118272834,0.67305284,222.92,222.82,13.28710253]
[1734118273438,0.67305284,222.92,222.81,13.28710253]
[1734118274100,0.67305284,222.93,222.81,13.28710253]
[1734118276652,0.67305284,222.93,222.83,13.28710253]
[1734118277154,0.67305284,222.93,222.83,0.12549]
[1734118278544,20.67305284,222.93,222.8,13.28710253]
[1734118279049,20.67305284,222.93,222.8,23.902374]
[1734118279953,20.67305284,222.93,222.78,13.96014328]
[1734118279954,11.34019,222.92,222.78,13.96014328]
[1734118280155,0.67305284,222.91,222.79,23.776884]
[1734118280535,0.67305284,222.91,222.8,0.12549]
[1734118282056,11.34119,222.9,222.75,13.28710253]
[1734118282364,0.67305284,222.89,222.76,0.12549]
[1734118282728,0.12549,222.88,222.77,20.0]
[1734118282925,0.12549,222.88,222.76,0.12549]
[1734118283151,0.12549,222.88,222.75,0.12549]
[1734118283325,0.12549,222.88,222.75,8.63218504]
[1734118283522,0.12549,222.88,222.73,8.50669504]
[1734118283726,0.12549,222.88,222.76,20.0]
[1734118284666,0.12549,222.88,222.75,0.12549]
[1734118284957,11.34269,222.88,222.75,0.12549]
[1734118285154,0.67305284,222.87,222.76,20.0]
[1734118286179,0.67305284,222.87,222.74,23.902374]
[1734118286364,0.67305284,222.87,222.71,42.22531571]
[1734118286365,0.12549,222.84,222.71,41.55208878]
[1734118286527,0.12549,222.82,222.71,11.55208878]
[1734118286858,0.79854284,222.82,222.71,11.55208878]
[1734118287076,0.67305284,222.85,222.71,25.51785649]
[1734118287232,0.12549,222.84,222.71,25.51785649]
[1734118287705,0.12549,222.84,222.72,13.41791943]
[1734118287957,0.67305284,222.85,222.74,37.19480343]
[1734118288150,20.0,222.86,222.75,13.29242943]
[1734118288446,0.67305284,222.85,222.74,37.19480343]
[1734118288653,0.67305284,222.85,222.71,52.77738878]
[1734118288654,0.67305284,222.85,222.72,23.902374]
[1734118289065,0.67305284,222.85,222.71,11.55208878]
[1734118289066,31.2188,222.84,222.71,11.55208878]
[1734118289236,20.79854284,222.83,222.71,11.55208878]
[1734118289437,20.0,222.81,222.71,11.55208878]
[1734118289638,0.67305284,222.8,222.71,11.55208878]
[1734118291876,7.71462239,222.87,222.75,13.29242943]
[1734118292050,0.67305284,222.87,222.75,13.29242943]
[1734118292950,0.67305284,222.87,222.74,13.41791943]
[1734118293175,0.67305284,222.87,222.74,0.12549]
[1734118293176,0.12549,222.86,222.74,0.12549]
[1734118293651,0.12549,222.86,222.74,13.41791943]
[1734118294581,0.67305284,222.87,222.76,13.41791943]
[1734118294885,7.68783602,222.98,222.81,13.29242943]
[1734118294886,0.67305284,222.9,222.81,13.29242943]
[1734118295350,0.67305284,222.92,222.81,13.29242943]
[1734118295956,0.67305284,222.92,222.81,0.12549]
[1734118296156,20.0,222.9,222.81,0.12549]
[1734118297857,20.0,222.9,222.8,13.29242943]
[1734118298177,0.67305284,222.89,222.78,13.29242943]
[1734118300083,0.67305284,222.89,222.79,13.29242943]
[1734118300685,0.67305284,222.89,222.78,13.29242943]
[1734118301165,0.67305284,222.89,222.79,13.29242943]
[1734118302279,0.67305284,222.89,222.8,13.29242943]
[1734118303688,0.67305284,222.89,222.8,0.12549]
[1734118304290,0.67305284,222.89,222.78,13.29242943]
[1734118304598,0.67305284,222.89,222.79,0.12549]
[1734118305164,0.67305284,222.89,222.8,13.29242943]
[1734118306080,20.0,222.9,222.8,13.29242943]
[1734118306081,20.67305284,222.9,222.8,13.29242943]
[1734118307180,20.67305284,222.9,222.78,0.12549]
[1734118307181,20.67305284,222.9,222.79,8.50271521]
[1734118307960,20.67305284,222.9,222.8,0.12549]
[1734118308193,11.2157,222.91,222.81,8.50271521]
[1734118308384,0.67305284,222.9,222.8,8.62820521]
[1734118308693,11.2157,222.91,222.8,8.62820521]
[1734118309105,0.67305284,222.93,222.82,8.62820521]
[1734118309307,20.0,222.92,222.82,8.62820521]
[1734118309596,18.25516955,222.95,222.81,24.44988972]
[1734118309597,0.67305284,222.94,222.84,8.62820521]
[1734118311180,0.67305284,222.94,222.83,23.902374]
[1734118313005,7.04156955,222.98,222.85,8.62820521]
[1734118313006,0.67305284,222.97,222.85,8.62820521]
[1734118313210,0.67305284,222.97,222.87,0.12549]
[1734118313495,0.67305284,222.97,222.88,8.50271521]
[1734118314075,0.67305284,222.98,222.88,8.50271521]
[1734118317179,9.6804022,223.03,222.91,8.62820521]
[1734118317180,0.67305284,223.02,222.91,8.62820521]
[1734118317577,0.67305284,223.03,222.93,8.50271521]
[1734118317828,0.67305284,223.03,222.92,32.40508921]
[1734118318199,0.67305284,223.06,222.93,8.50271521]
[1734118318397,0.67305284,223.06,222.94,8.50271521]
[1734118318834,0.12549,223.05,222.94,8.50271521]
[1734118322336,0.67305284,223.06,222.96,8.50271521]
[1734118323916,7.53353525,223.14,222.97,0.12549]
[1734118324235,11.2056,223.11,223.0,8.62820521]
[1734118324424,11.2056,223.11,222.93,30.0]
[1734118324425,0.67305284,223.1,222.93,30.0]
[1734118324625,0.67305284,223.1,222.94,23.776884]
[1734118325102,0.12549,223.09,222.92,16.67191521]
[1734118325306,0.12549,223.07,222.87,38.50271521]
[1734118325502,20.0,223.02,222.88,0.12549]
[1734118325709,0.67305284,223.01,222.88,8.62820521]
[1734118326124,0.67305284,223.01,222.88,8.50271521]
[1734118327329,0.67305284,223.01,222.88,13.27591399]
[1734118327630,0.67305284,223.01,222.89,13.40140399]
[1734118328014,0.67305284,223.01,222.9,13.27591399]
[1734118328521,0.67305284,223.01,222.89,13.40140399]
[1734118328897,0.67305284,223.01,222.92,13.27591399]
[1734118329932,11.88115284,223.06,222.95,13.27591399]
[1734118330110,11.88115284,223.06,222.97,13.27591399]
[1734118331612,11.88115284,223.06,222.96,13.27591399]
[1734118332030,11.88115284,223.06,222.95,13.27591399]
[1734118332219,11.88115284,223.06,222.96,13.27591399]
[1734118332420,31.2061,223.1,222.99,13.40140399]
[1734118332732,0.67305284,223.09,222.99,13.40140399]
[1734118334373,0.67305284,223.09,222.97,30.0]
[1734118334575,0.67305284,223.09,222.99,13.27591399]
[1734118335571,11.2061,223.1,223.01,13.27591399]
[1734118335787,20.67305284,223.12,223.03,13.27591399]
[1734118335950,0.67305284,223.13,223.04,13.27591399]
[1734118336150,0.67305284,223.13,223.03,13.40140399]
[1734118336351,0.67305284,223.13,223.04,13.27591399]
[1734118336584,0.4919657,223.14,223.06,13.27591399]
[1734118336788,0.4919657,223.14,223.07,13.27591399]
[1734118337179,0.4919657,223.14,223.09,0.12549]
[1734118338177,0.4919657,223.14,223.07,43.27591399]
[1734118338599,0.4919657,223.14,223.08,0.12549]
[1734118339393,0.4919657,223.14,223.09,13.27591399]
[1734118339798,0.4919657,223.14,223.08,13.40140399]
[1734118340572,0.4919657,223.14,223.09,13.27591399]
[1734118341000,0.4919657,223.14,223.08,13.40140399]
[1734118341176,0.4919657,223.14,223.06,13.27591399]
[1734118341786,0.4919657,223.14,223.05,37.17828799]
[1734118342198,0.4919657,223.14,223.06,13.27591399]
[1734118343470,0.4919657,223.14,223.08,0.12549]
[1734118343670,0.4919657,223.14,223.08,13.27591399]
[1734118344495,0.4919657,223.14,223.08,0.12549]
[1734118346273,0.4919657,223.14,223.07,13.27591399]
[1734118346472,0.4919657,223.14,223.06,13.27591399]
[1734118347788,0.4919657,223.14,223.07,13.27591399]
[1734118348088,0.4919657,223.14,223.09,13.27591399]
[1734118350617,0.4919657,223.14,223.11,13.40140399]
[1734118350787,0.4919657,223.14,223.13,13.27591399]
[1734118351301,0.4919657,223.14,223.13,37.17828799]
[1734118353220,0.4919657,223.14,223.13,32.37802164]
[1734118357397,0.4919657,223.14,223.13,40.61721164]
[1734118359690,0.4919657,223.14,223.13,40.49172164]
[1734118360199,0.4919657,223.14,223.13,16.58934764]
[1734118360722,0.4919657,223.14,223.13,16.71483764]
[1734118360895,0.4919657,223.14,223.13,46.71483764]
[1734118361603,0.4919657,223.14,223.13,70.49172164]
[1734118361924,0.4919657,223.14,223.13,40.49172164]
[1734118363918,0.4919657,223.14,223.13,32.016074]
[1734118364116,0.4919657,223.14,223.13,40.49172164]
[1734118364921,0.4919657,223.14,223.09,30.0]
[1734118365106,0.4919657,223.14,223.08,8.47564764]
[1734118365510,0.4919657,223.14,223.05,30.0]
[1734118365708,0.4919657,223.14,223.05,8.47564764]
[1734118366022,0.4919657,223.14,223.05,0.12549]
[1734118366236,0.4919657,223.14,223.05,38.47564764]
[1734118366722,0.4919657,223.14,223.05,8.47564764]
[1734118368803,0.4919657,223.14,223.06,8.47564764]
[1734118370803,0.4919657,223.14,223.05,28.47564764]
[1734118371003,0.4919657,223.14,223.05,8.47564764]
[1734118371413,1.16501854,223.14,223.05,8.47564764]
[1734118372401,1.16501854,223.14,223.04,8.60113764]
[1734118373522,1.16501854,223.14,223.0,0.67234599]
[1734118373722,11.32969,223.13,222.99,8.47564764]
[1734118373926,20.0,223.1,222.98,8.47564764]
[1734118374100,0.67305284,223.09,222.99,0.12549]
[1734118374298,0.67305284,223.09,222.98,8.47564764]
[1734118375626,0.67305284,223.09,222.99,8.60113764]
[1734118376815,0.67305284,223.09,222.98,8.47564764]
[1734118378703,0.12549,223.08,222.96,11.53761863]
[1734118378923,11.33219,223.08,222.96,11.53761863]
[1734118379138,0.67305284,223.07,222.97,8.60113764]
[1734118379322,0.67305284,223.07,222.99,8.47564764]
[1734118379727,0.67305284,223.07,222.98,8.47564764]
[1734118380116,0.67305284,223.08,222.98,8.47564764]
[1734118380320,0.67305284,223.08,222.99,8.47564764]
[1734118380518,0.67305284,223.08,222.96,20.01326627]
[1734118380718,0.12549,223.08,222.96,11.53761863]
[1734118380932,0.12549,223.09,222.96,11.53761863]
[1734118381229,0.12549,223.11,222.93,8.47564764]
[1734118381230,20.0,223.04,222.93,8.47564764]
[1734118381537,0.67305284,223.03,222.91,16.39514764]
[1734118381720,0.67305284,223.03,222.92,8.47564764]
[1734118381919,0.67305284,223.03,222.93,8.47564764]
[1734118382813,0.67305284,223.03,222.91,8.47564764]
[1734118384137,0.67305284,223.03,222.92,8.47564764]